Workbook

Sheet ETA
A1: ¯ = Nei, ® = Ja
N2: Formel, Frekvens
A3: Ingen kjøling VV, f= | C3: TT, feiler, q= | F3: Operatør feiler, q= | L3: Ingen kjøling, F=
A4: =F_0 -> 5.21517483e-05 | C4: =q_TT -> 0.006944444444 | F4: =1-90% -> 0.1 | L4: =fInit*q_TT2*q_Op -> 3.621649187e-08 | N4: =ShowFormula(L4) -> =fInit*q_TT2*q_Op
A5: =ShowFormula(fInit) -> =F_0 | C5: =ShowFormula(q_TT2) -> =q_TT | F5: =ShowFormula(q_Op) -> =1-90%
I6: P3 eller DM feiler, q= | L6: Ingen kjøling, F=
I7: =q_P3+q_DM -> 0.01875 | L7: =fInit*q_TT2*(1-q_Op)*q_SeaWater1 -> 6.111533003e-09 | N7: =ShowFormula(L7) -> =fInit*q_TT2*(1-q_Op)*q_SeaWater1
I8: =ShowFormula(q_SeaWater1) -> =q_P3+q_DM
L9: Forsinket kjøling, F=
L10: =fInit*q_TT2*(1-q_Op)*(1-q_SeaWater1) -> 3.198368938e-07 | M10: (ii) | N10: =ShowFormula(L10) -> =fInit*q_TT2*(1-q_Op)*(1-q_SeaWater1)
I12: P3 eller DM feiler, q= | L12: Ingen kjøling, F=
I13: =q_P3+q_DM -> 0.01875 | L13: =fInit*(1-q_TT2)*q_SeaWater2 -> 9.710546883e-07 | N13: =ShowFormula(L13) -> =fInit*(1-q_TT2)*q_SeaWater2
I14: =ShowFormula(q_SeaWater2) -> =q_P3+q_DM
L15: Sjøvannskjøling, F=
L16: =fInit*(1-q_TT2)*(1-q_SeaWater2) -> 5.081852869e-05 | M16: (i) | N16: =ShowFormula(L16) -> =fInit*(1-q_TT2)*(1-q_SeaWater2)
L19: S ingen kjøling, F=
L20: =L7+L4+L13 -> 1.013382713e-06 | M20: (iii)

Sheet FTA
B3: Q0 - bidrag | C3: Formel | D3: F0 - bidrag | E3: Formel
A4: Cut set(s) with 1 component
A5: {S} | B5: =q_S -> 9.132420091e-05 | C5: =ShowFormula(B5) -> =q_S | D5: =lambda_S -> 2.283105023e-05 | E5: =ShowFormula(D5) -> =lambda_S
A6: {VV} | B6: =q_VV -> 0.001369863014 | C6: =ShowFormula(B6) -> =q_VV | D6: =lambda_VV -> 2.853881279e-05 | E6: =ShowFormula(D6) -> =lambda_VV
A8: Cut set(s) with 2 components
A9: {P1,P2} | B9: =q_P1*q_P2 -> 8.340109672e-07 | C9: =q_P1*q_P2 | D9: =lambda_P1*q_P2+q_P1*lambda_P2 -> 2.085027418e-07 | E9: =lambda_P1*q_P2+q_P1*lambda_P2
A10: {P1,M2} | B10: =q_P1*q_M2 -> 1.251016451e-06 | C10: =q_P1*q_M2 | D10: =lambda_P1*q_M2+q_P1*lambda_M2 -> 2.085027418e-07 | E10: =lambda_P1*q_M2+q_P1*lambda_M2
A11: {M1,P2} | B11: =q_M1*q_P2 -> 1.251016451e-06 | C11: =q_M1*q_P2 | D11: =lambda_M1*q_P2+q_M1*lambda_P2 -> 2.085027418e-07 | E11: =lambda_M1*q_P2+q_M1*lambda_P2
A12: {M1,M2} | B12: =q_M1*q_M2 -> 1.876524676e-06 | C12: =q_M1*q_M2 | D12: =lambda_M1*q_M2+q_M1*lambda_M2 -> 1.563770564e-07 | E12: =lambda_M1*q_M2+q_M1*lambda_M2
A13: Q0= | B13: =SUM(B5:B12) -> 0.001466399783 | C13: F0= | D13: =SUM(D5:D12) -> 5.21517483e-05
A14: Q0× 8760 = timer per år = | B14: =B13*8760 -> 12.8456621 | D14: =D13*8760 -> 0.4568493151 | E14: (Frekvens per år)

Sheet Parametere
A1: Enhet | B1: MTTF (år) | C1: MDT (t) | D1: t (t) | E1: navn | F1: l | G1: navn | H1: q
A2: Pumpe, P1 | B2: 1 | C2: 8 | E2: lambda_P1 | F2: =1/(8760*B2) -> 0.0001141552511 | G2: q_P1 | H2: =C2*F2 -> 0.0009132420091
A3: Pumpe, P2 | B3: 1 | C3: 8 | E3: lambda_P2 | F3: =1/(8760*B3) -> 0.0001141552511 | G3: q_P2 | H3: 0.0009132420091
A4: Elektrisk motor, M1 | B4: 2 | C4: 24 | E4: lambda_M1 | F4: 5.707762557e-05 | G4: q_M1 | H4: 0.001369863014
A5: Elektrisk motor, M2 | B5: 2 | C5: 24 | E5: lambda_M2 | F5: 5.707762557e-05 | G5: q_M2 | H5: 0.001369863014
A6: Varmeveksler, VV | B6: 4 | C6: 48 | E6: lambda_VV | F6: 2.853881279e-05 | G6: q_VV | H6: 0.001369863014
A7: Strømforsyning, S | B7: 5 | C7: 4 | E7: lambda_S | F7: 2.283105023e-05 | G7: q_S | H7: 9.132420091e-05
A8: Pumpe P3 | B8: 5 | D8: 730 | E8: lambda_P3 | F8: 2.283105023e-05 | G8: q_P3 | H8: =D8*F8/2 -> 0.008333333333
A9: Dieselmotor, DM | B9: 4 | D9: 730 | E9: lambda_DM | F9: 2.853881279e-05 | G9: q_DM | H9: =D9*F9/2 -> 0.01041666667
A10: Temperaturmåler, TT | B10: 6 | D10: 730 | E10: lambda_TT | F10: 1.902587519e-05 | G10: q_TT | H10: =D10*F10/2 -> 0.006944444444

Sheet RBD
H2: Enhet | I2: MTTF (år) | J2: MTTF (t) | K2: MDT (t) | L2: navn | M2: p = tilgjengelighet | N2: Formel (p) | O2: lambda
H3: Pumpe, P1 | I3: 1 | J3: =I3*8760 -> 8760 | K3: 8 | L3: P_P1 | M3: =(J3)/(J3+K3) -> 0.9990875912 | N3: =ShowFormula(M3) -> =(J3)/(J3+K3) | O3: =1/J3 -> 0.0001141552511
H4: Pumpe, P2 | I4: 1 | J4: =I4*8760 -> 8760 | K4: 8 | L4: P_P2 | M4: =(J4)/(J4+K4) -> 0.9990875912 | N4: =ShowFormula(M4) -> =(J4)/(J4+K4) | O4: =1/J4 -> 0.0001141552511
H5: Elektrisk motor, M1 | I5: 2 | J5: =I5*8760 -> 17520 | K5: 24 | L5: P_M1 | M5: =(J5)/(J5+K5) -> 0.9986320109 | N5: =ShowFormula(M5) -> =(J5)/(J5+K5) | O5: 5.707762557e-05
H6: Elektrisk motor, M2 | I6: 2 | J6: =I6*8760 -> 17520 | K6: 24 | L6: P_M2 | M6: =(J6)/(J6+K6) -> 0.9986320109 | N6: =ShowFormula(M6) -> =(J6)/(J6+K6) | O6: 5.707762557e-05
H7: Varmeveksler, VV | I7: 4 | J7: =I7*8760 -> 35040 | K7: 48 | L7: P_VV | M7: =(J7)/(J7+K7) -> 0.9986320109 | N7: =ShowFormula(M7) -> =(J7)/(J7+K7) | O7: 2.853881279e-05
H8: Strømforsyning, S | I8: 5 | J8: =I8*8760 -> 43800 | K8: 4 | L8: P_S | M8: =(J8)/(J8+K8) -> 0.9999086841 | N8: =ShowFormula(M8) -> =(J8)/(J8+K8) | O8: 2.283105023e-05
A11: Lager moduler av hver grein, I og II, med strukturfunksjoner hhv
A12: fI = xP1 xM1 xS
A13: fII = xP2 xM2 xS
A15: For hele strukturen:
A16: f(x) = (1-(1-fI)(1-fII)xVV = (fI+fII-fIfII)xVV
A18: Innsatt:
A19: f(x) = (xP1 xM1 xS + xP2 xM2 xS - xP1 xM1 xP2 xM2 xS2 )xVV
A21: Stryker potenser:
A22: f(x) = (xP1 xM1 xS + xP2 xM2 xS - xP1 xM1 xP2 xM2 xS )xVV
A24: Systempålitelighet:
A25: h(p) = (pP1 pM1 pS + pP2 pM2 pS - pP1 pM1 pP2 pM2 pS )pVV
A27: Innsatt | B27: Verdi | C27: Formel
A28: h(p)= | B28: =(P_P1*P_M1*P_S+P_P2*P_M2*P_S-P_P1*P_P2*P_M1*P_M2*P_S)*P_VV -> 0.9985356331 | C28: =ShowFormula(B28) -> =(P_P1*P_M1*P_S+P_P2*P_M2*P_S-P_P1*P_P2*P_M1*P_M2*P_S)*P_VV
A29: 1-h(p)= | B29: =1-h_p -> 0.001464366942 | C29: =ShowFormula(B29) -> =1-h_p
A31: Birnbaum | B31: Verdi | C31: Formel
A32: Pumpe, P1 | B32: =(P_M1*P_S-P_P2*P_M1*P_M2*P_S)*P_VV -> 0.002272710658 | C32: =ShowFormula(B32) -> =(P_M1*P_S-P_P2*P_M1*P_M2*P_S)*P_VV
A33: Pumpe, P2 | B33: =(P_M2*P_S-P_P1*P_M1*P_M2*P_S)*P_VV -> 0.002272710658 | C33: =ShowFormula(B33) -> =(P_M2*P_S-P_P1*P_M1*P_M2*P_S)*P_VV
A34: Elektrisk motor, M1 | B34: =(P_P1*P_S-P_P1*P_P2*P_M2*P_S)*P_VV -> 0.002273747479 | C34: =ShowFormula(B34) -> =(P_P1*P_S-P_P1*P_P2*P_M2*P_S)*P_VV
A35: Elektrisk motor, M2 | B35: =(P_P2*P_S-P_P1*P_P2*P_M1*P_S)*P_VV -> 0.002273747479 | C35: =ShowFormula(B35) -> =(P_P2*P_S-P_P1*P_P2*P_M1*P_S)*P_VV
A36: Varmeveksler, VV | B36: =(P_P1*P_M1*P_S+P_P2*P_M2*P_S-P_P1*P_P2*P_M1*P_M2*P_S) -> 0.9999034901 | C36: =ShowFormula(B36) -> =(P_P1*P_M1*P_S+P_P2*P_M2*P_S-P_P1*P_P2*P_M1*P_M2*P_S)
A37: Strømforsyning, S | B37: =(P_P1*P_M1+P_P2*P_M2-P_P1*P_P2*P_M1*P_M2)*P_VV -> 0.9986268235 | C37: =ShowFormula(B37) -> =(P_P1*P_M1+P_P2*P_M2-P_P1*P_P2*P_M1*P_M2)*P_VV
A39: F0= | B39: =SUMPRODUCT(Birnbaum,lambda) -> 5.21142016e-05 | C39: =ShowFormula(B39) -> =SUMPRODUCT(Birnbaum,lambda)
A40: F0(per år)= | B40: =B39*8760 -> 0.456520406 | C40: =ShowFormula(B40) -> =B39*8760

Sheet IoT_GET
A1: Name | B1: Value | C1: Description
A2: sjonFolder | B2: https://folk.ntnu.no/jvatn/eLearning/DT/ | C2: Usually, do not update
A3: sjonName | B3: sJonTest | C3: Name of SJON file to use, without extension
A4: Par1_ | B4: 2
A5: Par2_ | B5: 5
